[Event "SVK Extraliga 2017-18"]
[Site "Slovakia"]
[Date "2017.12.09"]
[Round "5"]
[White "Brestak, Jan"]
[Black "Csonka, Attila"]
[Result "0-1"]
[ECO "B40"]
[WhiteElo "2135"]
[BlackElo "2365"]
[Annotator "NA"]
[PlyCount "110"]
[EventDate "2017.??.??"]
[EventType "team-tourn"]
[EventCountry "SVK"]
[TimeControl "40/5400+30:1800+30"]

1. e4 c5 2. Nf3 e6 3. b3 b6 4. Nc3 Bb7 5. Bb2 Nc6 6. Qe2 Nd4 7. Qd3 Nxf3+ 8. Qxf3 Ne7 9. Qg3 Nc6 10. Nb5 d6 11. a4 a6 12. Na3 Nd4 13. Bd3 h5 14. h4 e5 15. Nc4 Rh6 $16 16. Qg5 Qc7 17. Rh2 Ne6 18. Qe3 Be7 19. g3 b5 20. Na3 c4 21. Be2 Nd4 22. Bd1 Qc6 23. f3 d5 24. d3 c3 25. Bc1 O-O-O 26. Qf2 Bc5 27. Be3 Rf6 28. axb5 axb5 29. Qg2 Qa6 30. b4 Bxb4 31. Bxd4 exd4 32. e5 Rh6 33. f4 Bxa3 34. g4 b4 35. g5 Rhh8 36. f5 Qc6 37. Qg3 Rde8 38. Kf1 Qc7 39. Re2 f6 40. gxf6 gxf6 41. Qg6 fxe5 42. f6 Qh7 43. Qg3 Rhg8 44. Qf3 Qg6 45. Rf2 e4 46. Qh3+ Kd8 47. Qh2 Re6 48. f7 Rf8 49. Qb8+ Bc8 50. Qa7 Bd7 51. Qa5+ Ke7 52. Qc5+ Rd6 53. dxe4 Bh3+ 54. Ke1 Qg1+ 55. Ke2 Bg4+ 0-1

[Event "SVK Extraliga 2017-18"]
[Site "Slovakia"]
[Date "2017.12.09"]
[Round "5"]
[White "Pcola, Jaroslav"]
[Black "Kusiak, Matej"]
[Result "0-1"]
[ECO "A40"]
[WhiteElo "2113"]
[BlackElo "2308"]
[Annotator "NA"]
[PlyCount "122"]
[EventDate "2017.??.??"]
[EventType "team-tourn"]
[EventCountry "SVK"]
[SourceTitle "playchess.com"]
[Source "ChessBase"]
[SourceQuality "1"]
[TimeControl "40/5400+30:1800+30"]

1. d4 {[%emt 0:00:00]} b6 {[%emt 0:00:10]} 2. e4 {[%emt 0:11:33]} Bb7 {[%emt 0:00:12]} 3. Bd3 {[%emt 0:01:13]} Nf6 {[%emt 0:00:51]} 4. Qe2 {[%emt 0:05:40]} e6 {[%emt 0:01:57]} 5. Nf3 {[%emt 0:00:45]} c5 {[%emt 0:03:53]} 6. c3 {[%emt 0:06:34]} Be7 {[%emt 0:03:39]} 7. O-O {[%emt 0:00:59]} Nc6 {[%emt 0:00:38]} 8. Bg5 {[%emt 0:02:33]} h6 {[%emt 0:05:36]} 9. Bh4 {[%emt 0:01:30]} cxd4 {[%emt 0:01:05]} 10. Nxd4 {[%emt 0:02:30]} d6 {[%emt 0:08:53]} 11. Nxc6 {[%emt 0:06:20]} Bxc6 {[%emt 0:00:06]} 12. Nd2 {[%emt 0:00:05]} O-O {[%emt 0:00:27]} 13. Nb3 {[%emt 0:02:28]} e5 {[%emt 0:01:25]} 14. Rad1 {[%emt 0:04:12]} Nd7 {[%emt 0:07:21]} 15. Bxe7 {[%emt 0:06:07]} Qxe7 {[%emt 0:00:05]} 16. Bb5 {[%emt 0:12:22]} Bxb5 {[%emt 0:11:39]} 17. Qxb5 {[%emt 0:00:10]} Nf6 {[%emt 0:00:09]} 18. Rfe1 {[%emt 0:03:16]} Qc7 {[%emt 0:01:42]} 19. Nd2 {[%emt 0:04:12]} Rfd8 {[%emt 0:02:30]} 20. Nf1 {[%emt 0:02:22]} a6 {[%emt 0:00:47]} 21. Qe2 {[%emt 0:01:29]} Qc5 {[%emt 0:05:55]} 22. Ng3 {[%emt 0:03:01]} g6 {[%emt 0:01:41]} 23. Qe3 {[%emt 0:04:49]} Rac8 {[%emt 0:04:43]} 24. Qxc5 {[%emt 0:02:41]} Rxc5 {[%emt 0:00:22]} 25. f3 {[%emt 0:02:16]} b5 {[%emt 0:04:28]} 26. Nf1 {[%emt 0:03:38]} Ne8 {[%emt 0:19:37]} 27. Ne3 {[%emt 0:00:37]} Nc7 {[%emt 0:00:08]} 28. Re2 {[%emt 0:01:36]} Kf8 {[%emt 0:00:06]} 29. Red2 {[%emt 0:00:22]} Ke7 {[%emt 0:00:04]} 30. Kf2 {[%emt 0:01:15]} Ke6 {[%emt 0:00:12]} 31. Nd5 {[%emt 0:01:45]} Nxd5 {[%emt 0:00:11]} 32. Rxd5 {[%emt 0:00:04]} Rxd5 {[%emt 0:00:27]} 33. Rxd5 {[%emt 0:01:47]} f5 {[%emt 0:00:13]} 34. g3 {[%emt 0:02:27]} Rc8 {[%emt 0:01:07]} 35. Ke3 {[%emt 0:01:11]} g5 {[%emt 0:06:51]} 36. Rd2 {[%emt 0:02:46]} fxe4 {[%emt 0:00:30]} 37. fxe4 {[%emt 0:00:08]} Rc5 {[%emt 0:02:49]} 38. Rd3 {[%emt 0:00:35]} g4 {[%emt 0:01:32]} 39. b3 {[%emt 0:01:09]} Rc8 {[%emt 0:01:11]} 40. Ke2 {[%emt 0:00:46]} h5 {[%emt 0:30:42]} 41. Ke3 {[%emt 0:15:52]} a5 {[%emt 0:00:00]} 42. Kd2 {[%emt 0:03:54]} a4 {[%emt 0:00:00]} 43. b4 {[%emt 0:03:16]} Rf8 {[%emt 0:00:00]} 44. Ke2 {[%emt 0:00:11]} Kd7 {[%emt 0:00:00]} 45. Ke1 {[%emt 0:04:43]} Kc6 {[%emt 0:00:00]} 46. Ke2 {[%emt 0:00:15]} Rf7 {[%emt 0:00:00]} 47. Ke1 {[%emt 0:01:28]} Rd7 {[%emt 0:00:00]} 48. Rd5 {[%emt 0:00:17]} h4 {[%emt 0:00:00]} 49. Rd3 {[%emt 0:03:24]} hxg3 {[%emt 0:00:00]} 50. Rxg3 {[%emt 0:00:43]} Rh7 {[%emt 0:00:00]} 51. Rg2 {[%emt 0:00:34]} Rh3 {[%emt 0:00:00]} 52. Kd2 {[%emt 0:01:28]} d5 {[%emt 0:00:00]} 53. exd5+ {[%emt 0:00:23]} Kxd5 {[%emt 0:00:00]} 54. Re2 {[%emt 0:00:23]} e4 {[%emt 0:00:00]} 55. Kc2 {[%emt 0:00:26]} Ke5 {[%emt 0:02:40]} 56. Kd2 {[%emt 0:00:48]} Rd3+ {[%emt 0:03:13]} 57. Kc2 {[%emt 0:00:25]} Kf4 {[%emt 0:00:38]} 58. Rf2+ {[%emt 0:00:19]} Rf3 {[%emt 0:01:37]} 59. Re2 {[%emt 0:00:15]} Rf1 {[%emt 0:00:32]} 60. Rg2 {[%emt 0:01:03]} e3 {[%emt 0:00:18]} 61. c4 {[%emt 0:00:27]} Rf2+ {[%emt 0:00:28]} 0-1

[Event "SVK Extraliga 2017-18"]
[Site "Slovakia"]
[Date "2017.12.09"]
[Round "5"]
[White "Magat, Jozef"]
[Black "Mydlarik, Martin"]
[Result "1/2-1/2"]
[ECO "A48"]
[WhiteElo "2110"]
[BlackElo "2083"]
[Annotator "NA"]
[PlyCount "35"]
[EventDate "2017.??.??"]
[EventType "team-tourn"]
[EventCountry "SVK"]
[SourceTitle "playchess.com"]
[Source "ChessBase"]
[SourceQuality "1"]
[TimeControl "40/5400+30:1800+30"]

1. Nf3 {[%emt 0:00:00]} Nf6 {[%emt 0:00:21]} 2. d4 {[%emt 0:00:00]} g6 {[%emt 0:00:36]} 3. Bf4 {[%emt 0:02:35]} Bg7 {[%emt 0:00:27]} 4. e3 {[%emt 0:01:03]} O-O {[%emt 0:00:15]} 5. Nbd2 {[%emt 0:00:31]} d6 {[%emt 0:03:07]} 6. Bd3 {[%emt 0:01:16]} c5 {[%emt 0:02:14]} 7. c3 {[%emt 0:01:06]} Nc6 {[%emt 0:00:14]} 8. Qc2 {[%emt 0:02:46]} cxd4 {[%emt 0:09:09]} 9. exd4 {[%emt 0:03:23]} e5 {[%emt 0:02:27]} 10. dxe5 {[%emt 0:03:08]} dxe5 {[%emt 0:00:05]} 11. Bg5 {[%emt 0:02:14]} Qc7 {[%emt 0:02:20]} 12. O-O {[%emt 0:03:19]} Be6 {[%emt 0:06:02]} 13. Bxf6 {[%emt 0:19:48]} Bxf6 {[%emt 0:00:05]} 14. Bc4 {[%emt 0:00:56]} Bf5 {[%emt 0:01:44]} 15. Ne4 {[%emt 0:04:10]} Be7 {[%emt 0:05:57]} 16. Qe2 {[%emt 0:02:18]} Kg7 {[%emt 0:05:34]} 17. Ng3 {[%emt 0:05:18]} Bg4 {[%emt 0:00:42]} 18. Bd5 {[%emt 0:04:10]} 1/2-1/2

[Event "SVK Extraliga 2017-18"]
[Site "Slovakia"]
[Date "2017.12.09"]
[Round "5"]
[White "Hanko, Pavol"]
[Black "Banas, Kamil"]
[Result "0-1"]
[ECO "D02"]
[WhiteElo "2073"]
[BlackElo "2265"]
[Annotator "NA"]
[PlyCount "106"]
[EventDate "2017.??.??"]
[EventType "team-tourn"]
[EventCountry "SVK"]
[SourceTitle "playchess.com"]
[Source "ChessBase"]
[SourceQuality "1"]
[TimeControl "40/5400+30:1800+30"]

1. d4 {[%emt 0:00:00]} d5 {[%emt 0:00:06]} 2. Nf3 {[%emt 0:00:00]} e6 {[%emt 0:00:14]} 3. c4 {[%emt 0:00:44]} c6 {[%emt 0:00:08]} 4. e3 {[%emt 0:04:02]} f5 {[%emt 0:01:29]} 5. Nc3 {[%emt 0:01:33]} Nf6 {[%emt 0:00:23]} 6. Bd3 {[%emt 0:02:38]} Bd6 {[%emt 0:00:29]} 7. Ne5 {[%emt 0:02:00]} O-O {[%emt 0:01:20]} 8. O-O {[%emt 0:00:25]} Nbd7 {[%emt 0:02:09]} 9. f4 {[%emt 0:03:29] LiveBook: 14 Games} Ne4 {[%emt 0:02:29]} 10. Nxe4 {[%emt 0:03:28] A85: Dutch Defence: 2 c4 Nf6 3 Nc3} (10. Bd2 Nxe5 11. fxe5 Nxd2 12. Qxd2 Bxe5 13. cxd5 Bc7 14. dxc6 bxc6 15. Rac1 Kh8 16. Ne2 e5 17. Qc2 Qg5 {1-0 (37) Aronian,L (2803)-Ivanchuk,V (2731) Beijing 2013}) 10... dxe4 {[%emt 0:05:08]} 11. Be2 {[%emt 0:02:40]} Nf6 {[%emt 0:05:58]} 12. Bd2 $146 {[%emt 0:02:20]} ({Predecessor:} 12. b3 c5 13. Bb2 b6 14. Qd2 Qe7 15. Rfd1 Bb7 16. a3 Rfd8 17. Qc1 a5 {0-1 (38) Zsinka,L (2365)-Emodi,B (2375) Aggtelek 1998}) 12... Qc7 {[%emt 0:05:22]} 13. b4 {[%emt 0:02:31]} b6 {[%emt 0:01:58]} 14. a4 {[%emt 0:06:22]} c5 {[%emt 0:10:08]} 15. a5 {[%emt 0:04:02]} Bb7 {[%emt 0:04:43]} 16. Qb3 {[%emt 0:05:59]} Rfd8 {[%emt 0:07:35]} 17. bxc5 {[%emt 0:08:33]} Bxc5 {[%emt 0:03:23]} 18. Bc3 {[%emt 0:04:37]} Bd6 {[%emt 0:04:46]} 19. Rfb1 {[%emt 0:02:54]} Bxe5 {[%emt 0:02:52]} 20. fxe5 {[%emt 0:02:09]} Nd7 {[%emt 0:00:14]} 21. c5 {[%emt 0:05:13]} Bd5 {[%emt 0:02:01]} 22. Bc4 {[%emt 0:01:56]} Bxc4 {[%emt 0:03:47]} 23. Qxc4 {[%emt 0:00:09]} Qc6 {[%emt 0:00:41]} 24. Rd1 {[%emt 0:18:54]} b5 {[%emt 0:02:51]} 25. Qb3 $14 {[%emt 0:02:04]} Nb8 {[%emt 0:06:47]} 26. Ra2 {[%emt 0:02:12]} a6 {[%emt 0:01:37]} 27. h3 {[%emt 0:02:27]} Rd5 {[%emt 0:06:14]} 28. Rf1 {[%emt 0:01:29]} Nd7 {[%emt 0:01:56]} 29. Be1 {[%emt 0:00:59]} Nf8 {[%emt 0:03:41]} 30. g4 {[%emt 0:00:19]} fxg4 {[%emt 0:03:15]} 31. hxg4 {[%emt 0:00:11]} Ng6 {[%emt 0:00:23]} 32. Rh2 {[%emt 0:02:09]} Rd7 {[%emt 0:02:03]} 33. Qc2 {[%emt 0:00:36]} Rf8 {[%emt 0:02:32]} 34. Rxf8+ {[%emt 0:01:24]} Nxf8 {[%emt 0:00:08]} 35. g5 {[%emt 0:00:31]} Rf7 {[%emt 0:02:33]} 36. Rh4 {[%emt 0:01:19]} Rf5 {[%emt 0:01:22]} 37. Qxe4 {[%emt 0:01:39]} Rxg5+ {[%emt 0:00:17]} 38. Kf1 {[%emt 0:00:15]} Qe8 {[%emt 0:00:42]} 39. Rg4 {[%emt 0:01:12]} Rh5 {[%emt 0:03:38]} 40. c6 {[%emt 0:03:13]} Ng6 {[%emt 0:31:04]} 41. Rg2 {[%emt 0:05:45]} Ne7 {[%emt 0:00:00]} 42. Rc2 {[%emt 0:05:17]} Nd5 {[%emt 0:00:00]} 43. Bf2 {[%emt 0:08:13]} Nc7 {[%emt 0:00:00]} 44. Qg4 {[%emt 0:02:24]} Rf5 {[%emt 0:00:00]} 45. e4 {[%emt 0:00:26]} Rf7 {[%emt 0:00:00]} 46. Qd1 {[%emt 0:02:11]} Qd8 {[%emt 0:00:00]} 47. Rd2 {[%emt 0:00:49]} Qh4 {[%emt 0:00:00]} 48. Qc2 {[%emt 0:03:56]} Qh1+ {[%emt 0:00:00]} 49. Ke2 {[%emt 0:00:09]} Rf4 {[%emt 0:00:00]} 50. Qb3 {[%emt 0:04:56]} Rxe4+ {[%emt 0:00:00]} 51. Kd3 {[%emt 0:00:16]} Rf4 {[%emt 0:00:00]} 52. Be3 {[%emt 0:02:07]} Qe4+ {[%emt 0:00:00]} 53. Ke2 {[%emt 0:00:03]} Rg4 {[%emt 0:00:00]} 0-1

[Event "SVK Extraliga 2017-18"]
[Site "Slovakia"]
[Date "2017.12.10"]
[Round "6"]
[White "Pinter, Erik"]
[Black "Hros, Roman"]
[Result "0-1"]
[ECO "B40"]
[WhiteElo "2381"]
[BlackElo "2194"]
[Annotator "NA"]
[PlyCount "80"]
[EventDate "2017.??.??"]
[EventType "team-tourn"]
[EventCountry "SVK"]
[SourceTitle "playchess.com"]
[Source "ChessBase"]
[SourceQuality "1"]
[TimeControl "40/5400+30:1800+30"]

1. e4 {[%emt 0:00:00]} c5 {[%emt 0:00:00]} 2. Nf3 {[%emt 0:00:06]} e6 {[%emt 0:00:02]} 3. d3 {[%emt 0:01:25]} Nc6 {[%emt 0:01:05]} 4. g3 {[%emt 0:00:16]} Nf6 {[%emt 0:03:28]} 5. Bg2 {[%emt 0:00:20]} d5 {[%emt 0:00:15]} 6. Nbd2 {[%emt 0:00:10]} Be7 {[%emt 0:01:04]} 7. O-O {[%emt 0:00:12]} b6 {[%emt 0:00:08]} 8. Re1 {[%emt 0:00:47]} Bb7 {[%emt 0:00:12]} 9. c3 {[%emt 0:13:05]} Qc7 {[%emt 0:16:10]} 10. Qe2 {[%emt 0:02:54]} O-O-O {[%emt 0:09:38]} 11. a3 {[%emt 0:09:46]} h6 {[%emt 0:05:04]} 12. e5 {[%emt 0:11:28]} Nd7 {[%emt 0:01:08]} 13. Nf1 {[%emt 0:10:58]} g5 {[%emt 0:01:14]} 14. h3 {[%emt 0:01:46]} Rdg8 {[%emt 0:00:47]} 15. g4 {[%emt 0:03:54]} h5 {[%emt 0:04:14]} 16. Ng3 {[%emt 0:07:24]} hxg4 {[%emt 0:01:02]} 17. hxg4 {[%emt 0:00:02]} Kb8 {[%emt 0:16:12]} 18. Nh5 {[%emt 0:01:22]} d4 {[%emt 0:06:30]} 19. cxd4 {[%emt 0:16:06]} Rxh5 {[%emt 0:01:39]} 20. d5 {[%emt 0:01:09]} Rh6 {[%emt 0:11:15]} 21. dxc6 {[%emt 0:00:57]} Bxc6 {[%emt 0:01:12]} 22. Bd2 {[%emt 0:01:31]} Rgh8 {[%emt 0:01:03]} 23. b4 {[%emt 0:01:46]} Qb7 {[%emt 0:00:27]} 24. Rac1 {[%emt 0:06:47]} Rh3 {[%emt 0:02:45]} 25. Bxh3 {[%emt 0:00:37]} Bxf3 {[%emt 0:01:42]} 26. Qf1 {[%emt 0:00:08]} Rh4 {[%emt 0:00:55]} 27. Re3 {[%emt 0:05:38]} b5 {[%emt 0:08:16]} 28. Rce1 {[%emt 0:01:12]} Nb6 {[%emt 0:00:44]} 29. Rxf3 {[%emt 0:00:32]} Qxf3 {[%emt 0:00:15]} 30. Re3 {[%emt 0:00:04]} Qd5 {[%emt 0:01:37]} 31. Qe2 {[%emt 0:02:16]} Qd4 {[%emt 0:00:59]} 32. Kh2 {[%emt 0:00:41]} c4 {[%emt 0:01:55]} 33. Qf3 {[%emt 0:00:40]} Nd5 {[%emt 0:01:23]} 34. Qxf7 {[%emt 0:00:27]} Qxg4 {[%emt 0:01:58]} 35. Rg3 {[%emt 0:00:30]} Qf5 {[%emt 0:01:02]} 36. Qxf5 {[%emt 0:00:25]} exf5 {[%emt 0:00:01]} 37. dxc4 {[%emt 0:00:22]} bxc4 {[%emt 0:00:03]} 38. Kg1 {[%emt 0:00:45]} f4 {[%emt 0:00:14]} 39. Bg2 {[%emt 0:00:28]} fxg3 {[%emt 0:00:04]} 40. Bxd5 {[%emt 0:00:06]} Rd4 {[%emt 0:30:05]} 0-1

[Event "SVK Extraliga 2017-18"]
[Site "Slovakia"]
[Date "2017.12.10"]
[Round "6"]
[White "Farkas, Gabor"]
[Black "Zetocha, Claudiu"]
[Result "1-0"]
[ECO "A45"]
[WhiteElo "2378"]
[BlackElo "2352"]
[Annotator "NA"]
[PlyCount "139"]
[EventDate "2017.??.??"]
[EventType "team-tourn"]
[EventCountry "SVK"]
[SourceTitle "playchess.com"]
[Source "ChessBase"]
[SourceQuality "1"]
[TimeControl "40/5400+30:1800+30"]

1. d4 {[%emt 0:00:00]} Nf6 {[%emt 0:01:53]} 2. Bf4 {[%emt 0:00:00]} g6 {[%emt 0:02:45]} 3. e3 {[%emt 0:00:58]} Bg7 {[%emt 0:00:22]} 4. Nf3 {[%emt 0:00:08]} d6 {[%emt 0:06:08]} 5. Be2 {[%emt 0:01:13]} Nbd7 {[%emt 0:02:10]} 6. O-O {[%emt 0:01:08]} b6 {[%emt 0:13:41]} 7. a4 {[%emt 0:02:39]} a5 {[%emt 0:09:43]} 8. c4 {[%emt 0:01:28]} Bb7 {[%emt 0:00:41]} 9. Nc3 {[%emt 0:01:15]} O-O {[%emt 0:05:44]} 10. Qc2 {[%emt 0:03:02]} Nb8 {[%emt 0:06:25]} 11. Rad1 {[%emt 0:06:37]} Nh5 {[%emt 0:07:02]} 12. Bg5 {[%emt 0:02:12]} h6 {[%emt 0:00:06]} 13. Bh4 {[%emt 0:00:05]} Nc6 {[%emt 0:01:22]} 14. d5 {[%emt 0:01:55]} Nb4 {[%emt 0:00:39]} 15. Qb1 {[%emt 0:02:55]} Qe8 {[%emt 0:04:31]} 16. Nd4 {[%emt 0:03:59]} e5 {[%emt 0:01:48]} 17. dxe6 {[%emt 0:04:01]} fxe6 {[%emt 0:00:05]} 18. Ncb5 {[%emt 0:02:42]} Rc8 {[%emt 0:09:43]} 19. Bg4 {[%emt 0:01:51]} Bxd4 {[%emt 0:00:29]} 20. Nxd4 {[%emt 0:01:44]} Ng7 {[%emt 0:00:17]} 21. f3 {[%emt 0:14:13]} Nf5 {[%emt 0:08:17]} 22. Bf2 {[%emt 0:00:15]} Ng7 {[%emt 0:08:54]} 23. e4 {[%emt 0:04:37]} g5 {[%emt 0:02:26]} 24. Rfe1 {[%emt 0:03:49]} Qf7 {[%emt 0:00:25]} 25. Be3 {[%emt 0:07:26]} Rce8 {[%emt 0:00:23]} 26. b3 {[%emt 0:01:02]} Qg6 {[%emt 0:04:32]} 27. e5 {[%emt 0:07:17]} Qxb1 {[%emt 0:00:15]} 28. Rxb1 {[%emt 0:00:07]} d5 {[%emt 0:01:20]} 29. Bd2 {[%emt 0:02:55]} Nd3 {[%emt 0:00:58]} 30. Re3 {[%emt 0:03:00]} dxc4 {[%emt 0:00:02]} 31. bxc4 {[%emt 0:01:48]} Nc5 {[%emt 0:00:08]} 32. Nb5 {[%emt 0:01:03]} Rd8 {[%emt 0:00:34]} 33. Bc3 {[%emt 0:01:16]} Rf7 {[%emt 0:00:12]} 34. Bd4 {[%emt 0:00:56]} Nxa4 {[%emt 0:01:06]} 35. Ra3 {[%emt 0:00:41]} Nc5 {[%emt 0:01:27]} 36. Bxc5 {[%emt 0:00:07]} bxc5 {[%emt 0:00:03]} 37. Rxa5 {[%emt 0:00:30]} Bc6 {[%emt 0:00:33]} 38. Na7 {[%emt 0:01:31]} Be8 {[%emt 0:00:40]} 39. Rxc5 {[%emt 0:00:17]} Rd2 {[%emt 0:01:29]} 40. Rb8 {[%emt 0:04:34]} Kh7 {[%emt 0:30:27]} 41. Nc6 {[%emt 0:37:57]} Rfd7 {[%emt 0:00:00]} 42. h4 {[%emt 0:00:00]} h5 {[%emt 0:00:00]} 43. Bh3 {[%emt 0:00:00]} gxh4 {[%emt 0:00:00]} 44. Nb4 {[%emt 0:00:00]} Bg6 {[%emt 0:00:00]} 45. Nd5 {[%emt 0:00:00]} Rf7 {[%emt 0:00:00]} 46. Nf6+ {[%emt 0:00:00]} Kh6 {[%emt 0:00:00]} 47. Rb7 {[%emt 0:00:00]} Bf5 {[%emt 0:00:00]} 48. Rcxc7 {[%emt 0:00:00]} Rxc7 {[%emt 0:00:00]} 49. Rxc7 {[%emt 0:00:00]} Bxh3 {[%emt 0:00:00]} 50. gxh3 {[%emt 0:00:00]} Nf5 {[%emt 0:00:00]} 51. Ne4 {[%emt 0:00:00]} Rc2 {[%emt 0:00:00]} 52. c5 {[%emt 0:00:00]} Kg6 {[%emt 0:01:13]} 53. Rc8 {[%emt 0:00:00]} Ng3 {[%emt 0:01:45]} 54. Nd6 {[%emt 0:02:01]} Ne2+ {[%emt 0:00:37]} 55. Kf1 {[%emt 0:02:23]} Nd4 {[%emt 0:00:58]} 56. f4 {[%emt 0:00:09]} Nf3 {[%emt 0:00:35]} 57. c6 {[%emt 0:00:53]} Kg7 {[%emt 0:01:51]} 58. c7 {[%emt 0:00:30]} Kh7 {[%emt 0:00:02]} 59. Ne8 {[%emt 0:00:27]} Rd2 {[%emt 0:00:59]} 60. Nf6+ {[%emt 0:00:52]} Kg6 {[%emt 0:00:00]} 61. Rg8+ {[%emt 0:01:10]} Kf5 {[%emt 0:00:02]} 62. Rg2 {[%emt 0:00:20]} Rd1+ {[%emt 0:00:21]} 63. Kf2 {[%emt 0:00:58]} Rc1 {[%emt 0:01:21]} 64. Kxf3 {[%emt 0:00:30]} Rc3+ {[%emt 0:00:09]} 65. Kf2 {[%emt 0:00:10]} Kxf4 {[%emt 0:00:09]} 66. Nxh5+ {[%emt 0:02:14]} Kxe5 {[%emt 0:00:14]} 67. Rg5+ {[%emt 0:00:22]} Kd6 {[%emt 0:00:29]} 68. Rg7 {[%emt 0:00:24]} Ke5 {[%emt 0:00:08]} 69. Rf7 {[%emt 0:00:33]} Ke4 {[%emt 0:00:45]} 70. Nf6+ {[%emt 0:00:10] Kd5} 1-0

[Event "SVK Extraliga 2017-18"]
[Site "Slovakia"]
[Date "2017.12.10"]
[Round "6"]
[White "Csonka, Attila Istvan"]
[Black "Zatko, Gregor"]
[Result "1-0"]
[ECO "B06"]
[WhiteElo "2366"]
[BlackElo "2167"]
[Annotator "NA"]
[PlyCount "79"]
[EventDate "2017.??.??"]
[EventType "team-tourn"]
[EventCountry "SVK"]
[SourceTitle "playchess.com"]
[Source "ChessBase"]
[SourceQuality "1"]
[TimeControl "40/5400+30:1800+30"]

1. e4 {[%emt 0:00:00]} g6 {[%emt 0:00:04]} 2. d4 {[%emt 0:00:00]} Bg7 {[%emt 0:00:03]} 3. Nf3 {[%emt 0:00:02]} d6 {[%emt 0:00:05]} 4. Bc4 {[%emt 0:01:02]} e6 {[%emt 0:00:07]} 5. Bb3 {[%emt 0:01:25]} Ne7 {[%emt 0:00:06]} 6. O-O {[%emt 0:01:59]} Nd7 {[%emt 0:00:04]} 7. Re1 {[%emt 0:02:29]} b6 {[%emt 0:00:06]} 8. Nbd2 {[%emt 0:01:06]} Bb7 {[%emt 0:00:23]} 9. Nf1 {[%emt 0:00:12]} c5 {[%emt 0:04:55]} 10. c3 {[%emt 0:01:28]} cxd4 {[%emt 0:04:20]} 11. cxd4 {[%emt 0:03:47]} O-O {[%emt 0:02:56]} 12. Bg5 {[%emt 0:07:59]} h6 {[%emt 0:00:22]} 13. Bd2 {[%emt 0:01:10]} Nf6 {[%emt 0:02:45]} 14. Ng3 {[%emt 0:02:38]} d5 {[%emt 0:00:41]} 15. e5 {[%emt 0:00:07]} Ne4 {[%emt 0:01:30]} 16. Bb4 {[%emt 0:00:07]} Re8 {[%emt 0:12:15]} 17. Ba4 {[%emt 0:03:43]} Nc6 {[%emt 0:00:10]} 18. Ba3 {[%emt 0:03:43]} a6 {[%emt 0:00:55]} 19. Bc2 {[%emt 0:00:23]} Nxg3 {[%emt 0:11:21]} 20. hxg3 {[%emt 0:00:13]} Na5 {[%emt 0:01:26]} 21. b3 {[%emt 0:02:41]} Nc6 {[%emt 0:04:09]} 22. Rc1 {[%emt 0:04:18]} b5 {[%emt 0:00:45]} 23. Bc5 {[%emt 0:01:19]} b4 {[%emt 0:01:28]} 24. g4 {[%emt 0:00:16]} a5 {[%emt 0:02:54]} 25. g3 {[%emt 0:01:56]} Nb8 {[%emt 0:05:14]} 26. Kg2 {[%emt 0:04:16]} Nd7 {[%emt 0:00:05]} 27. Bd6 {[%emt 0:01:42]} Nf8 {[%emt 0:01:17]} 28. Rh1 {[%emt 0:01:24]} Nh7 {[%emt 0:03:07]} 29. Nh4 {[%emt 0:03:21]} Ng5 {[%emt 0:01:29]} 30. f3 {[%emt 0:07:06]} Qd7 {[%emt 0:01:04]} 31. Bxg6 {[%emt 0:09:44]} fxg6 {[%emt 0:02:34]} 32. Rc7 {[%emt 0:00:21]} Qb5 {[%emt 0:00:16]} 33. Qc2 {[%emt 0:00:05]} Ne4 {[%emt 0:00:53]} 34. fxe4 {[%emt 0:02:34]} Rac8 {[%emt 0:08:04]} 35. Rf1 {[%emt 0:03:05]} Qb6 {[%emt 0:02:30]} 36. Rff7 {[%emt 0:02:17]} Rxc7 {[%emt 0:01:48]} 37. Qxc7 {[%emt 0:00:30]} Qxc7 {[%emt 0:00:20]} 38. Rxc7 {[%emt 0:00:04]} Ba8 {[%emt 0:00:08]} 39. Nxg6 {[%emt 0:00:07]} dxe4 {[%emt 0:00:16]} 40. Kf2 {[%emt 0:00:04]} 1-0

[Event "SVK Extraliga 2017-18"]
[Site "Slovakia"]
[Date "2017.12.10"]
[Round "6"]
[White "Hrabusa, Matej"]
[Black "Mrva, Martin"]
[Result "0-1"]
[ECO "A41"]
[WhiteElo "2357"]
[BlackElo "2401"]
[Annotator "NA"]
[PlyCount "78"]
[EventDate "2017.??.??"]
[EventType "team-tourn"]
[EventCountry "SVK"]
[SourceTitle "playchess.com"]
[Source "ChessBase"]
[SourceQuality "1"]
[TimeControl "40/5400+30:1800+30"]

1. d4 {[%emt 0:00:00]} d6 {[%emt 0:01:34]} 2. Nf3 {[%emt 0:00:00]} Bg4 {[%emt 0:01:33]} 3. c4 {[%emt 0:00:03]} c6 {[%emt 0:03:23]} 4. Nc3 {[%emt 0:00:58]} Qb6 {[%emt 0:03:12]} 5. e3 {[%emt 0:08:49]} Nd7 {[%emt 0:06:29]} 6. Be2 {[%emt 0:02:01]} e6 {[%emt 0:12:29]} 7. O-O {[%emt 0:04:29]} Be7 {[%emt 0:00:53]} 8. h3 {[%emt 0:01:42]} Bh5 {[%emt 0:00:21]} 9. Qa4 {[%emt 0:16:00]} Ngf6 {[%emt 0:04:23]} 10. b4 {[%emt 0:00:56]} Bg6 {[%emt 0:03:47]} 11. Ba3 {[%emt 0:07:07]} Qc7 {[%emt 0:05:25]} 12. Rac1 {[%emt 0:04:40]} Ne4 {[%emt 0:01:25]} 13. Nxe4 {[%emt 0:04:47]} Bxe4 {[%emt 0:00:09]} 14. Nd2 {[%emt 0:01:05]} Bg6 {[%emt 0:01:30]} 15. d5 {[%emt 0:05:20]} O-O {[%emt 0:04:30]} 16. Rfd1 {[%emt 0:04:04]} a5 {[%emt 0:11:45]} 17. b5 {[%emt 0:02:50]} Nb6 {[%emt 0:01:32]} 18. Qb3 {[%emt 0:00:43]} a4 {[%emt 0:00:51]} 19. Qb4 {[%emt 0:07:05]} c5 {[%emt 0:00:18]} 20. Qb2 {[%emt 0:00:05]} Bf6 {[%emt 0:00:07]} 21. Rc3 {[%emt 0:00:16]} exd5 {[%emt 0:01:12]} 22. Qc1 {[%emt 0:00:23]} Rfe8 {[%emt 0:10:08]} 23. Bf1 {[%emt 0:05:46]} Bh5 {[%emt 0:14:19]} 24. g4 {[%emt 0:00:45]} Bg6 {[%emt 0:00:06]} 25. Bg2 {[%emt 0:03:43]} h5 {[%emt 0:02:42]} 26. cxd5 {[%emt 0:00:42]} hxg4 {[%emt 0:00:56]} 27. hxg4 {[%emt 0:00:06]} Qd7 {[%emt 0:00:25]} 28. Nc4 {[%emt 0:02:21]} Nxc4 {[%emt 0:01:54]} 29. Rxc4 {[%emt 0:00:05]} Qxb5 {[%emt 0:00:09]} 30. f4 {[%emt 0:03:37]} Rxe3 {[%emt 0:01:38]} 31. f5 {[%emt 0:03:42]} Rxa3 {[%emt 0:02:08]} 32. fxg6 {[%emt 0:01:01]} Rxa2 {[%emt 0:00:11]} 33. gxf7+ {[%emt 0:00:56]} Kxf7 {[%emt 0:00:48]} 34. Qf4 {[%emt 0:03:00]} Qb2 {[%emt 0:01:20]} 35. Qf3 {[%emt 0:01:42]} Qe2 {[%emt 0:00:56]} 36. Rb1 {[%emt 0:01:39]} Qxc4 {[%emt 0:00:51]} 37. Rxb7+ {[%emt 0:00:06]} Kg8 {[%emt 0:00:06]} 38. g5 {[%emt 0:01:57]} Qc1+ {[%emt 0:00:34]} 39. Kh2 {[%emt 0:00:15]} Qxg5 {[%emt 0:00:07]} 0-1